[Event "EYTCC U12 Open 2019"]
[Site "Pardubice"]
[Date "2019.07.16"]
[Round "6.21"]
[White "Smolik, Jachym"]
[Black "Herega, Nejc"]
[Result "1-0"]
[ECO "B52"]
[WhiteElo "1757"]
[BlackElo "1939"]
[Annotator "NA"]
[PlyCount "69"]
[EventDate "2019.07.11"]
[EventType "swiss"]
[EventCountry "CZE"]
[SourceTitle "playchess.com"]
[Source "ChessBase"]
[SourceQuality "1"]
[WhiteTeam "Czech Republic"]
[BlackTeam "Slovenia"]
[WhiteTeamCountry "CZE"]
[BlackTeamCountry "SLO"]
[TimeControl "40/5400+30:1800+30"]

1. e4 {[%emt 0:00:00]} c5 {[%emt 0:00:00]} 2. Nf3 {[%emt 0:00:00]} d6 {[%emt 0:00:00]} 3. Bb5+ {[%emt 0:00:00]} Bd7 {[%emt 0:00:00]} 4. c4 {[%emt 0:00:00]} Bxb5 {[%emt 0:04:00]} 5. cxb5 {[%emt 0:00:06]} Nd7 {[%emt 0:02:36]} 6. O-O {[%emt 0:03:21]} Ngf6 {[%emt 0:02:31]} 7. Nc3 {[%emt 0:02:13]} g6 {[%emt 0:02:54]} 8. d4 {[%emt 0:04:56]} cxd4 {[%emt 0:03:48]} 9. Nxd4 {[%emt 0:00:41]} Bg7 {[%emt 0:01:24]} 10. Be3 {[%emt 0:08:36]} O-O {[%emt 0:01:48]} 11. f3 {[%emt 0:02:13]} Ne5 {[%emt 0:07:55]} 12. Qb3 {[%emt 0:12:10]} Nfd7 {[%emt 0:03:28]} 13. a4 {[%emt 0:02:32]} Rc8 {[%emt 0:08:17]} 14. Qa2 {[%emt 0:05:31]} e6 {[%emt 0:11:53]} 15. Rfd1 {[%emt 0:03:43]} Qh4 {[%emt 0:04:18]} 16. Bf2 {[%emt 0:02:54]} Qe7 {[%emt 0:02:08]} 17. Nde2 {[%emt 0:03:58]} Nc5 {[%emt 0:04:14]} 18. Rab1 {[%emt 0:17:05]} f5 {[%emt 0:06:44]} 19. exf5 {[%emt 0:04:53]} gxf5 {[%emt 0:01:18]} 20. Kh1 {[%emt 0:08:24]} Kh8 {[%emt 0:05:10]} 21. b4 {[%emt 0:01:15]} Ncd7 {[%emt 0:05:20]} 22. Rb3 {[%emt 0:03:45]} Nc4 {[%emt 0:04:40]} 23. Nb1 {[%emt 0:00:48]} Qg5 {[%emt 0:02:03]} 24. f4 {[%emt 0:01:26]} Qh5 {[%emt 0:00:57]} 25. Rh3 {[%emt 0:00:29]} Qf7 {[%emt 0:02:12]} 26. Nd2 {[%emt 0:00:30]} Nxd2 {[%emt 0:03:16]} 27. Qxd2 {[%emt 0:00:02]} Nf6 {[%emt 0:01:51]} 28. Ng3 {[%emt 0:02:18]} Nd5 {[%emt 0:05:24]} 29. Nh5 {[%emt 0:03:18]} Rc4 {[%emt 0:00:36]} 30. Nxg7 {[%emt 0:00:53]} Qxg7 {[%emt 0:00:14]} 31. Bd4 {[%emt 0:00:50]} e5 32. fxe5 {[%emt 0:00:12]} dxe5 {[%emt 0:00:29]} 33. Bc5 {[%emt 0:01:02]} Rd8 {[%emt 0:02:11]} 34. Rd3 {[%emt 0:00:15]} Qf7 {[%emt 0:01:58]} 35. Rxd5 {[%emt 0:00:43]} 1-0

[Event "EYTCC U12 Open 2019"]
[Site "Pardubice"]
[Date "2019.07.16"]
[Round "6.22"]
[White "Skrbec, Leon"]
[Black "Fizer, Marek"]
[Result "0-1"]
[ECO "D37"]
[WhiteElo "1896"]
[BlackElo "1624"]
[Annotator "NA"]
[PlyCount "84"]
[EventDate "2019.07.11"]
[EventType "swiss"]
[EventCountry "CZE"]
[SourceTitle "playchess.com"]
[Source "ChessBase"]
[SourceQuality "1"]
[WhiteTeam "Slovenia"]
[BlackTeam "Czech Republic"]
[WhiteTeamCountry "SLO"]
[BlackTeamCountry "CZE"]
[TimeControl "40/5400+30:1800+30"]

1. d4 {[%emt 0:00:00]} d5 {[%emt 0:00:00]} 2. c4 {[%emt 0:00:00]} e6 {[%emt 0:00:06]} 3. Nc3 {[%emt 0:00:16]} Nf6 {[%emt 0:00:12]} 4. Nf3 {[%emt 0:01:16]} g6 {[%emt 0:01:10]} 5. Bg5 {[%emt 0:00:46]} Bg7 {[%emt 0:00:39]} 6. e3 {[%emt 0:00:25]} O-O {[%emt 0:00:43]} 7. Be2 {[%emt 0:00:19]} b6 {[%emt 0:00:55]} 8. O-O {[%emt 0:00:26]} Bb7 {[%emt 0:00:51]} 9. cxd5 {[%emt 0:01:05]} exd5 {[%emt 0:00:55]} 10. Rc1 {[%emt 0:00:40]} Nc6 {[%emt 0:08:24]} 11. a3 {[%emt 0:02:06]} Re8 {[%emt 0:01:13]} 12. b4 {[%emt 0:00:55]} h6 {[%emt 0:01:42]} 13. Bh4 {[%emt 0:00:11]} g5 {[%emt 0:01:46]} 14. Bg3 {[%emt 0:00:12]} a6 {[%emt 0:09:37]} 15. b5 {[%emt 0:03:18]} Na5 {[%emt 0:04:21]} 16. Na2 {[%emt 0:02:01]} Re7 {[%emt 0:13:51]} 17. Nb4 {[%emt 0:03:08]} axb5 {[%emt 0:05:15]} 18. Bxb5 {[%emt 0:00:36]} Ne4 {[%emt 0:01:09]} 19. Be5 {[%emt 0:01:03]} f6 {[%emt 0:03:32]} 20. Bg3 {[%emt 0:00:16]} c5 {[%emt 0:01:30]} 21. dxc5 {[%emt 0:01:24]} bxc5 {[%emt 0:00:13]} 22. Nd3 {[%emt 0:00:48]} c4 {[%emt 0:00:22]} 23. Nb4 {[%emt 0:00:22]} Nb3 {[%emt 0:00:29]} 24. Rc2 {[%emt 0:10:17]} f5 {[%emt 0:01:55]} 25. a4 {[%emt 0:07:05]} Kh8 {[%emt 0:10:45]} 26. h4 {[%emt 0:04:45]} g4 {[%emt 0:02:24]} 27. Nd4 {[%emt 0:00:26]} Nxd4 {[%emt 0:00:36]} 28. exd4 {[%emt 0:00:14]} Qb6 {[%emt 0:00:54]} 29. Be5 {[%emt 0:01:24]} Bxe5 {[%emt 0:01:53]} 30. dxe5 {[%emt 0:00:03]} Rxe5 {[%emt 0:03:16]} 31. Qa1 {[%emt 0:02:03]} Qf6 {[%emt 0:02:27]} 32. Qd4 {[%emt 0:03:28]} g3 {[%emt 0:03:50]} 33. f3 {[%emt 0:27:39]} Nd6 {[%emt 0:02:03]} 34. Rd2 {[%emt 0:03:45]} Nxb5 {[%emt 0:01:06]} 35. axb5 {[%emt 0:00:05]} Rae8 {[%emt 0:00:20]} 36. Nc6 {[%emt 0:03:27]} Bxc6 {[%emt 0:00:46]} 37. bxc6 {[%emt 0:00:05]} f4 {[%emt 0:00:30]} 38. c7 {[%emt 0:00:44]} Kh7 {[%emt 0:01:05]} 39. Qa7 {[%emt 0:01:41]} R5e7 {[%emt 0:00:59]} 40. c8=Q {[%emt 0:02:41]} Rxc8 {[%emt 0:00:15]} 41. Qa2 {[%emt 0:30:22]} Qxh4 {[%emt 0:30:18]} 42. Qc2+ {[%emt 0:00:43]} Kh8 {[%emt 0:00:14]} 0-1

[Event "EYTCC U12 Open 2019"]
[Site "Pardubice"]
[Date "2019.07.16"]
[Round "6.23"]
[White "Juhanak, Daniel"]
[Black "Gregoric, Andraz"]
[Result "0-1"]
[ECO "C68"]
[WhiteElo "1510"]
[BlackElo "1911"]
[Annotator "NA"]
[PlyCount "118"]
[EventDate "2019.07.11"]
[EventType "swiss"]
[EventCountry "CZE"]
[SourceTitle "playchess.com"]
[Source "ChessBase"]
[SourceQuality "1"]
[WhiteTeam "Czech Republic"]
[BlackTeam "Slovenia"]
[WhiteTeamCountry "CZE"]
[BlackTeamCountry "SLO"]
[TimeControl "40/5400+30:1800+30"]

1. e4 {[%emt 0:00:00]} e5 {[%emt 0:00:00]} 2. Nf3 {[%emt 0:00:06]} Nc6 {[%emt 0:00:00]} 3. Bb5 {[%emt 0:00:40]} a6 {[%emt 0:00:08]} 4. Bxc6 {[%emt 0:00:48]} dxc6 {[%emt 0:00:14]} 5. O-O {[%emt 0:01:02]} Bg4 {[%emt 0:09:28]} 6. h3 {[%emt 0:02:09]} h5 {[%emt 0:01:27]} 7. d3 {[%emt 0:02:34]} Bxf3 {[%emt 0:04:52]} 8. Qxf3 {[%emt 0:01:56]} Qd7 {[%emt 0:00:20]} 9. Qg3 {[%emt 0:06:01]} f6 {[%emt 0:18:41]} 10. Qg6+ {[%emt 0:10:52]} Qf7 {[%emt 0:00:15]} 11. Qxf7+ {[%emt 0:00:39]} Kxf7 {[%emt 0:00:04]} 12. f4 {[%emt 0:04:35]} Bc5+ {[%emt 0:03:22]} 13. Kh1 {[%emt 0:01:05]} Ke6 {[%emt 0:01:07]} 14. fxe5 {[%emt 0:01:23]} fxe5 {[%emt 0:00:10]} 15. Nd2 {[%emt 0:00:33]} Nf6 {[%emt 0:01:33]} 16. Nf3 {[%emt 0:03:32]} Raf8 {[%emt 0:02:39]} 17. b3 {[%emt 0:06:56]} Be7 {[%emt 0:14:11]} 18. Bb2 {[%emt 0:03:16]} Bd6 {[%emt 0:00:53]} 19. Rae1 {[%emt 0:11:26]} h4 {[%emt 0:05:02]} 20. d4 Nh5 {[%emt 0:25:40]} 21. Kh2 {[%emt 0:17:59]} Ng3 {[%emt 0:02:09]} 22. Rf2 {[%emt 0:04:52]} Rh5 {[%emt 0:01:52]} 23. dxe5 {[%emt 0:03:50]} Bxe5 {[%emt 0:01:52]} 24. Bxe5 {[%emt 0:05:11]} Rxe5 {[%emt 0:00:23]} 25. Nd4+ {[%emt 0:00:52]} Ke7 {[%emt 0:00:22]} 26. Rxf8 Kxf8 {[%emt 0:02:09]} 27. Nf3 {[%emt 0:02:00]} Rxe4 {[%emt 0:00:16]} 28. Rxe4 {[%emt 0:00:49]} Nxe4 {[%emt 0:00:06]} 29. Nxh4 {[%emt 0:01:03]} Nc3 {[%emt 0:00:32]} 30. a4 {[%emt 0:01:46]} Ne2 {[%emt 0:02:53]} 31. Nf5 {[%emt 0:00:58]} a5 {[%emt 0:01:34]} 32. Ne3 {[%emt 0:01:25]} b5 {[%emt 0:00:59]} 33. axb5 {[%emt 0:01:20]} cxb5 {[%emt 0:00:05]} 34. Nd5 {[%emt 0:00:34]} c6 {[%emt 0:00:34]} 35. Ne3 {[%emt 0:00:55]} a4 {[%emt 0:00:41]} 36. bxa4 bxa4 {[%emt 0:00:05]} 37. c4 {[%emt 0:02:21]} a3 {[%emt 0:00:53]} 38. Nc2 {[%emt 0:00:45]} a2 {[%emt 0:00:05]} 39. g4 {[%emt 0:00:44]} Ke7 {[%emt 0:00:12]} 40. Kg2 {[%emt 0:00:42]} g5 {[%emt 0:01:14]} 41. Kf2 {[%emt 0:30:40]} Nf4 {[%emt 0:06:11]} 42. Kg3 {[%emt 0:00:00]} Ne2+ {[%emt 0:07:19]} 43. Kf2 {[%emt 0:00:00]} Nf4 {[%emt 0:03:48]} 44. Kg3 {[%emt 0:00:00]} Kd6 {[%emt 0:00:12]} 45. h4 {[%emt 0:00:00]} Ne2+ {[%emt 0:00:10]} 46. Kf2 {[%emt 0:00:00]} Nd4 {[%emt 0:00:16]} 47. Na1 {[%emt 0:00:00]} gxh4 {[%emt 0:00:08]} 48. Kg2 {[%emt 0:00:00]} Kc5 {[%emt 0:01:39]} 49. g5 {[%emt 0:00:00]} Nf5 {[%emt 0:00:21]} 50. Kh3 {[%emt 0:00:00]} Kxc4 {[%emt 0:00:35]} 51. Kg4 {[%emt 0:00:00]} Ng7 {[%emt 0:00:57]} 52. Kxh4 {[%emt 0:00:00]} Kc3 {[%emt 0:00:35]} 53. g6 {[%emt 0:00:00]} Kb2 {[%emt 0:00:05]} 54. Kg5 {[%emt 0:00:00]} Kxa1 {[%emt 0:00:08]} 55. Kf6 {[%emt 0:00:00]} Kb2 {[%emt 0:00:22]} 56. Kxg7 {[%emt 0:00:00]} a1=Q {[%emt 0:00:11]} 57. Kh7 {[%emt 0:00:00]} Qh1+ {[%emt 0:00:15]} 58. Kg8 {[%emt 0:00:00]} c5 {[%emt 0:00:14]} 59. g7 {[%emt 0:00:00]} Qg2 {[%emt 0:00:08]} 0-1

[Event "EYTCC U12 Open 2019"]
[Site "Pardubice"]
[Date "2019.07.16"]
[Round "6.24"]
[White "Olenik Campa, Rudi"]
[Black "Buchta, Bartolomej"]
[Result "1-0"]
[ECO "B54"]
[WhiteElo "1854"]
[BlackElo "1585"]
[Annotator "NA"]
[PlyCount "85"]
[EventDate "2019.07.11"]
[EventType "swiss"]
[EventCountry "CZE"]
[SourceTitle "playchess.com"]
[Source "ChessBase"]
[SourceQuality "1"]
[WhiteTeam "Slovenia"]
[BlackTeam "Czech Republic"]
[WhiteTeamCountry "SLO"]
[BlackTeamCountry "CZE"]
[TimeControl "40/5400+30:1800+30"]

1. e4 {[%emt 0:00:00]} c5 {[%emt 0:00:00]} 2. Nf3 {[%emt 0:00:00]} d6 {[%emt 0:00:00]} 3. d4 {[%emt 0:00:00]} cxd4 {[%emt 0:00:00]} 4. Nxd4 {[%emt 0:00:01]} Nf6 {[%emt 0:00:00]} 5. f3 {[%emt 0:00:14]} e5 {[%emt 0:00:18]} 6. Nb3 {[%emt 0:00:11]} Be6 {[%emt 0:00:07]} 7. c4 {[%emt 0:00:06]} Nbd7 {[%emt 0:00:41]} 8. Be3 {[%emt 0:00:24]} Rc8 {[%emt 0:00:09]} 9. Nc3 {[%emt 0:00:34]} a6 {[%emt 0:07:48]} 10. Nd5 {[%emt 0:04:03]} Bxd5 {[%emt 0:02:06]} 11. cxd5 {[%emt 0:00:05]} Be7 {[%emt 0:00:34]} 12. Qd2 {[%emt 0:00:06]} Nb6 {[%emt 0:02:55]} 13. Rc1 {[%emt 0:00:46]} Nfd7 {[%emt 0:02:26]} 14. Be2 {[%emt 0:00:46]} O-O {[%emt 0:02:44]} 15. O-O {[%emt 0:00:07]} f5 {[%emt 0:15:20]} 16. exf5 Rxf5 {[%emt 0:00:14]} 17. Na5 {[%emt 0:03:53]} Rb8 {[%emt 0:05:15]} 18. Nc4 {[%emt 0:07:55]} Nxc4 {[%emt 0:13:44]} 19. Rxc4 Bg5 {[%emt 0:10:57]} 20. Bd3 {[%emt 0:13:18]} Bxe3+ {[%emt 0:01:47]} 21. Qxe3 {[%emt 0:00:09]} Rh5 {[%emt 0:01:04]} 22. Rg4 {[%emt 0:08:07]} Nf6 {[%emt 0:01:44]} 23. Rg3 {[%emt 0:00:15]} Nxd5 {[%emt 0:02:35]} 24. Bc4 {[%emt 0:01:00]} b5 {[%emt 0:13:24]} 25. Bxd5+ {[%emt 0:00:06]} Kh8 {[%emt 0:00:05]} 26. Qa7 {[%emt 0:00:59]} Qb6+ {[%emt 0:01:44]} 27. Qxb6 {[%emt 0:00:03]} Rxb6 {[%emt 0:00:04]} 28. Rc1 {[%emt 0:00:09]} Rb8 {[%emt 0:00:11]} 29. Rc7 {[%emt 0:00:09]} g6 {[%emt 0:00:59]} 30. Rc6 {[%emt 0:00:07]} Rh4 {[%emt 0:00:48]} 31. Rg4 {[%emt 0:00:22]} Rh5 {[%emt 0:00:48]} 32. Rxa6 {[%emt 0:00:26]} Rc8 {[%emt 0:00:43]} 33. Rc6 {[%emt 0:00:06]} Rf8 {[%emt 0:01:59]} 34. Rb4 {[%emt 0:00:21]} Rhf5 {[%emt 0:00:47]} 35. Rxb5 {[%emt 0:00:16]} e4 {[%emt 0:00:31]} 36. Bc4 {[%emt 0:00:41]} Rf4 {[%emt 0:00:52]} 37. Be2 {[%emt 0:00:39]} e3 {[%emt 0:01:16]} 38. Rd5 {[%emt 0:00:14]} Rb4 {[%emt 0:00:41]} 39. b3 {[%emt 0:00:33]} Rbb8 {[%emt 0:00:36]} 40. Rdxd6 {[%emt 0:00:14]} Ra8 {[%emt 0:00:31]} 41. Rc2 {[%emt 0:30:16]} Rfe8 {[%emt 0:30:32]} 42. Rd7 {[%emt 0:00:00]} h5 {[%emt 0:01:02]} 43. Rcc7 {[%emt 0:01:44]} 1-0

[Event "EYTCC U12 Open 2019"]
[Site "Pardubice"]
[Date "2019.07.17"]
[Round "7.1"]
[White "Tancsa, Tamas"]
[Black "Tarhan, Adar"]
[Result "1/2-1/2"]
[ECO "C96"]
[WhiteElo "2126"]
[BlackElo "1972"]
[Annotator "ChessBase"]
[PlyCount "84"]
[EventDate "2019.07.11"]
[EventType "swiss"]
[EventCountry "CZE"]
[SourceTitle "playchess.com"]
[Source "ChessBase"]
[SourceQuality "1"]
[WhiteTeam "Hungary"]
[BlackTeam "Turkey"]
[WhiteTeamCountry "HUN"]
[BlackTeamCountry "TUR"]
[TimeControl "40/5400+30:1800+30"]

1. e4 {[%emt 0:00:00]} e5 2. Nf3 {[%emt 0:00:00]} Nc6 {[%emt 0:00:00]} 3. Bb5 {[%emt 0:00:00]} a6 {[%emt 0:00:00]} 4. Ba4 {[%emt 0:00:00]} Nf6 {[%emt 0:00:00]} 5. O-O {[%emt 0:00:11]} Be7 {[%emt 0:00:42]} 6. Re1 b5 {[%emt 0:00:10]} 7. Bb3 {[%emt 0:00:16]} d6 {[%emt 0:00:22]} 8. c3 {[%emt 0:00:05]} O-O {[%emt 0:00:09]} 9. h3 {[%emt 0:00:01]} Na5 {[%emt 0:00:19]} 10. Bc2 {[%emt 0:00:09]} c5 {[%emt 0:00:04]} 11. d4 {[%emt 0:00:02]} Nd7 {[%emt 0:00:16]} 12. d5 {[%emt 0:00:33]} Nb6 {[%emt 0:03:42]} 13. Nbd2 {[%emt 0:00:44]} g6 {[%emt 0:05:13]} 14. b4 {[%emt 0:02:53]} cxb4 {[%emt 0:02:23]} 15. cxb4 {[%emt 0:00:43]} Nac4 {[%emt 0:00:06]} 16. Nxc4 {[%emt 0:01:04]} Nxc4 {[%emt 0:00:08]} 17. Bb3 {[%emt 0:03:26]} Nb6 {[%emt 0:01:05]} 18. Bh6 {[%emt 0:00:25]} Re8 {[%emt 0:00:08]} 19. Rc1 {[%emt 0:00:18]} Bd7 {[%emt 0:02:28]} 20. Qd2 {[%emt 0:02:05]} Rc8 {[%emt 0:02:24]} 21. Ng5 {[%emt 0:04:49]} Nc4 {[%emt 0:03:46]} 22. Bxc4 {[%emt 0:01:41]} bxc4 {[%emt 0:01:49]} 23. f4 {[%emt 0:01:24]} Qb6+ {[%emt 0:06:33]} 24. Kh1 {[%emt 0:00:49]} c3 {[%emt 0:06:35]} 25. Qd3 {[%emt 0:17:26]} Qxb4 {[%emt 0:03:04]} 26. fxe5 {[%emt 0:00:43]} dxe5 {[%emt 0:00:10]} 27. Nxf7 {[%emt 0:04:48]} Kxf7 {[%emt 0:03:01]} 28. Rf1+ {[%emt 0:00:08]} Kg8 {[%emt 0:00:05]} 29. Qf3 {[%emt 0:00:14]} Rf8 {[%emt 0:00:15]} 30. Bxf8 {[%emt 0:00:08]} Rxf8 {[%emt 0:00:04]} 31. Qg3 {[%emt 0:00:09]} Rxf1+ {[%emt 0:03:50]} 32. Rxf1 Qd4 {[%emt 0:04:54]} 33. Qf3 {[%emt 0:01:24]} Be8 {[%emt 0:00:11]} 34. Qg4 Bf7 35. Qc8+ {[%emt 0:08:43]} Kg7 {[%emt 0:06:56]} 36. Qc7 {[%emt 0:01:33]} Bf6 {[%emt 0:01:29]} 37. Qd6 {[%emt 0:05:40]} Bg5 {[%emt 0:02:24]} 38. Qd7 {[%emt 0:05:29]} Bf4 {[%emt 0:00:08]} 39. Qc7 {[%emt 0:01:47]} Qd3 {[%emt 0:01:16]} 40. Rxf4 {[%emt 0:00:29]} Qb1+ {[%emt 0:00:05]} 41. Kh2 {[%emt 0:31:02]} exf4 {[%emt 0:30:30]} 42. Qxc3+ {[%emt 0:00:58]} Kg8 1/2-1/2

[Event "EYTCC U12 Open 2019"]
[Site "Pardubice"]
[Date "2019.07.17"]
[Round "7.2"]
[White "Celik, Hasan Huseyin"]
[Black "Tran, David"]
[Result "1-0"]
[ECO "C36"]
[WhiteElo "1903"]
[BlackElo "2112"]
[Annotator "ChessBase"]
[PlyCount "95"]
[EventDate "2019.07.11"]
[EventType "swiss"]
[EventCountry "CZE"]
[SourceTitle "playchess.com"]
[Source "ChessBase"]
[SourceQuality "1"]
[WhiteTeam "Turkey"]
[BlackTeam "Hungary"]
[WhiteTeamCountry "TUR"]
[BlackTeamCountry "HUN"]
[TimeControl "40/5400+30:1800+30"]

1. e4 {[%emt 0:00:00]} e5 {[%emt 0:00:00]} 2. f4 {[%emt 0:00:00]} exf4 {[%emt 0:00:00]} 3. Nf3 {[%emt 0:00:00]} d5 {[%emt 0:00:00]} 4. exd5 {[%emt 0:00:00]} Nf6 5. Bb5+ {[%emt 0:04:05]} c6 {[%emt 0:01:05]} 6. dxc6 {[%emt 0:00:07]} Nxc6 {[%emt 0:01:39]} 7. d4 {[%emt 0:00:55]} Bd6 {[%emt 0:02:32]} 8. O-O {[%emt 0:01:15]} O-O {[%emt 0:00:58]} 9. Nbd2 {[%emt 0:01:14]} Bg4 {[%emt 0:04:57]} 10. Nc4 {[%emt 0:06:04]} Bc7 {[%emt 0:02:17]} 11. c3 {[%emt 0:01:46]} Re8 {[%emt 0:03:38]} 12. Qc2 {[%emt 0:01:54]} Qd5 {[%emt 0:02:43]} 13. Bxc6 bxc6 {[%emt 0:01:13]} 14. Nfe5 {[%emt 0:08:54]} g5 {[%emt 0:07:13]} 15. h4 {[%emt 0:01:24]} h6 {[%emt 0:00:54]} 16. hxg5 {[%emt 0:00:41]} hxg5 {[%emt 0:00:59]} 17. Bxf4 {[%emt 0:00:01]} gxf4 {[%emt 0:00:56]} 18. Rxf4 Re6 {[%emt 0:19:03]} 19. Ne3 {[%emt 0:00:30]} Bxe5 {[%emt 0:04:26]} 20. Nxd5 {[%emt 0:00:23]} Bxf4 {[%emt 0:00:14]} 21. Nxf4 {[%emt 0:00:01]} Re4 {[%emt 0:00:36]} 22. Rf1 {[%emt 0:01:13]} Rae8 {[%emt 0:02:38]} 23. Qf2 {[%emt 0:01:19]} Nh5 24. Qh4 Nxf4 {[%emt 0:13:06]} 25. Rxf4 {[%emt 0:00:43]} Re1+ {[%emt 0:01:48]} 26. Rf1 {[%emt 0:01:13]} Rxf1+ {[%emt 0:00:20]} 27. Kxf1 {[%emt 0:00:10]} Be6 {[%emt 0:00:22]} 28. b3 {[%emt 0:00:25]} Kf8 {[%emt 0:01:15]} 29. Kg1 Rc8 {[%emt 0:02:37]} 30. c4 {[%emt 0:00:51]} Ke8 {[%emt 0:00:38]} 31. Qe4 {[%emt 0:00:32]} Kd8 {[%emt 0:01:37]} 32. d5 {[%emt 0:01:30]} cxd5 {[%emt 0:00:02]} 33. cxd5 {[%emt 0:00:05]} Bd7 {[%emt 0:00:05]} 34. d6 {[%emt 0:00:10]} Rc6 {[%emt 0:00:06]} 35. Qe7+ {[%emt 0:00:16]} Kc8 {[%emt 0:00:05]} 36. Qf8+ {[%emt 0:01:13]} Kb7 {[%emt 0:00:07]} 37. Qxf7 {[%emt 0:00:05]} Rxd6 {[%emt 0:00:04]} 38. g4 {[%emt 0:00:15]} Kc6 {[%emt 0:01:37]} 39. g5 {[%emt 0:00:37]} Rd5 {[%emt 0:00:50]} 40. g6 {[%emt 0:00:57]} Rg5+ {[%emt 0:00:55]} 41. Kh2 {[%emt 0:30:08]} Rh5+ {[%emt 0:30:15]} 42. Kg3 {[%emt 0:00:09]} Rg5+ {[%emt 0:00:03]} 43. Kf4 {[%emt 0:01:04]} Rg1 {[%emt 0:00:06]} 44. Qc4+ {[%emt 0:00:13]} Kb7 {[%emt 0:00:09]} 45. Qf7 {[%emt 0:01:04]} Kc6 {[%emt 0:00:10]} 46. Ke3 {[%emt 0:00:33]} Rg3+ {[%emt 0:01:30]} 47. Kf2 {[%emt 0:00:08]} Rg4 {[%emt 0:00:06]} 48. g7 1-0

[Event "EYTCC U12 Open 2019"]
[Site "Pardubice"]
[Date "2019.07.17"]
[Round "7.3"]
[White "Konyves, Almos"]
[Black "Portakalci, Yusuf"]
[Result "1-0"]
[ECO "E92"]
[WhiteElo "2104"]
[BlackElo "1764"]
[Annotator "ChessBase"]
[PlyCount "91"]
[EventDate "2019.07.11"]
[EventType "swiss"]
[EventCountry "CZE"]
[SourceTitle "playchess.com"]
[Source "ChessBase"]
[SourceQuality "1"]
[WhiteTeam "Hungary"]
[BlackTeam "Turkey"]
[WhiteTeamCountry "HUN"]
[BlackTeamCountry "TUR"]
[TimeControl "40/5400+30:1800+30"]

1. d4 {[%emt 0:00:00]} Nf6 {[%emt 0:00:00]} 2. c4 {[%emt 0:00:00]} g6 {[%emt 0:00:00]} 3. Nc3 {[%emt 0:00:00]} Bg7 {[%emt 0:00:00]} 4. e4 {[%emt 0:00:00]} d6 {[%emt 0:00:00]} 5. Be2 {[%emt 0:00:00]} O-O {[%emt 0:00:00]} 6. Be3 e5 {[%emt 0:01:20]} 7. Nf3 {[%emt 0:00:12]} Nc6 {[%emt 0:00:29]} 8. d5 {[%emt 0:00:05]} Ne7 {[%emt 0:00:05]} 9. Nd2 {[%emt 0:00:06]} Ne8 {[%emt 0:00:37]} 10. c5 {[%emt 0:00:15]} f5 {[%emt 0:00:46]} 11. f3 {[%emt 0:00:09]} f4 {[%emt 0:05:55]} 12. Bf2 {[%emt 0:00:07]} g5 {[%emt 0:00:49]} 13. Rc1 {[%emt 0:04:34]} Ng6 {[%emt 0:05:08]} 14. Nc4 {[%emt 0:03:25]} h5 {[%emt 0:03:13]} 15. cxd6 {[%emt 0:00:23]} cxd6 {[%emt 0:00:09]} 16. Qd2 {[%emt 0:14:49]} g4 {[%emt 0:15:10]} 17. Nb5 {[%emt 0:01:14]} a6 18. Nb6 {[%emt 0:16:04]} Rb8 {[%emt 0:16:03]} 19. Na3 {[%emt 0:02:07]} g3 {[%emt 0:02:28]} 20. hxg3 {[%emt 0:00:28]} fxg3 {[%emt 0:00:06]} 21. Be3 {[%emt 0:02:04]} Nf6 22. Nac4 {[%emt 0:01:57]} h4 {[%emt 0:06:00]} 23. Bg5 h3 {[%emt 0:05:35]} 24. Nxc8 {[%emt 0:00:40]} hxg2 {[%emt 0:00:21]} 25. Rg1 {[%emt 0:00:04]} Rxc8 {[%emt 0:04:48]} 26. Rxg2 {[%emt 0:00:45]} b5 {[%emt 0:03:57]} 27. Ne3 {[%emt 0:02:05]} Rxc1+ {[%emt 0:01:43]} 28. Qxc1 {[%emt 0:00:06]} Qa5+ {[%emt 0:01:34]} 29. Qd2 {[%emt 0:00:22]} Qxa2 {[%emt 0:04:49]} 30. Rxg3 {[%emt 0:00:37]} Qb1+ {[%emt 0:02:19]} 31. Bd1 {[%emt 0:01:29]} Nh5 {[%emt 0:03:31]} 32. Rg1 {[%emt 0:10:35]} Ngf4 {[%emt 0:13:45]} 33. Nf5 {[%emt 0:14:07]} Rf7 {[%emt 0:02:04]} 34. Bxf4 {[%emt 0:02:49]} Nxf4 {[%emt 0:00:23]} 35. Nh6+ {[%emt 0:00:34]} Kf8 {[%emt 0:00:01]} 36. Nxf7 {[%emt 0:00:12]} Kxf7 {[%emt 0:00:01]} 37. Qc3 {[%emt 0:01:44]} Nd3+ {[%emt 0:00:57]} 38. Ke2 {[%emt 0:00:58]} Nf4+ {[%emt 0:01:06]} 39. Ke3 {[%emt 0:03:44]} Bf8 {[%emt 0:00:24]} 40. Qc7+ {[%emt 0:03:54]} Be7 {[%emt 0:00:09]} 41. Qc2 {[%emt 0:30:47]} Qa1 {[%emt 0:31:56]} 42. Qc8 {[%emt 0:03:10]} Bf8 {[%emt 0:01:28]} 43. Rg5 {[%emt 0:08:33]} Qxd1 {[%emt 0:01:06]} 44. Qd7+ {[%emt 0:00:19]} Be7 {[%emt 0:00:00]} 45. Qf5+ {[%emt 0:00:00]} Bf6 {[%emt 0:00:00]} 46. Qh7+ {[%emt 0:00:00]} 1-0

[Event "EYTCC U12 Open 2019"]
[Site "Pardubice"]
[Date "2019.07.17"]
[Round "7.4"]
[White "Durak, Can"]
[Black "Giang, Tran Nam"]
[Result "1-0"]
[ECO "D27"]
[WhiteElo "1753"]
[BlackElo "1931"]
[Annotator "NA"]
[PlyCount "75"]
[EventDate "2019.07.11"]
[EventType "swiss"]
[EventCountry "CZE"]
[SourceTitle "playchess.com"]
[Source "ChessBase"]
[SourceQuality "1"]
[WhiteTeam "Turkey"]
[BlackTeam "Hungary"]
[WhiteTeamCountry "TUR"]
[BlackTeamCountry "HUN"]
[TimeControl "40/5400+30:1800+30"]

1. d4 {[%emt 0:00:00]} d5 {[%emt 0:00:00]} 2. c4 dxc4 {[%emt 0:00:00]} 3. e3 {[%emt 0:00:00]} e6 {[%emt 0:00:00]} 4. Bxc4 {[%emt 0:00:00]} a6 {[%emt 0:00:00]} 5. Nf3 {[%emt 0:00:31]} c5 6. O-O {[%emt 0:00:44]} Nf6 {[%emt 0:00:15]} 7. dxc5 {[%emt 0:00:52]} Qxd1 {[%emt 0:00:43]} 8. Rxd1 {[%emt 0:00:06]} Bxc5 {[%emt 0:00:11]} 9. Be2 {[%emt 0:00:08]} Nbd7 {[%emt 0:05:46]} 10. b3 {[%emt 0:02:25]} b6 {[%emt 0:04:07]} 11. Bb2 {[%emt 0:02:38]} Bb7 {[%emt 0:01:45]} 12. Nbd2 {[%emt 0:03:50]} Ke7 {[%emt 0:05:02]} 13. Nc4 {[%emt 0:05:24]} Rhd8 {[%emt 0:03:56]} 14. a4 {[%emt 0:08:52]} Rac8 {[%emt 0:08:26]} 15. Rac1 {[%emt 0:04:42]} Bd5 {[%emt 0:05:37]} 16. Ncd2 {[%emt 0:05:12]} a5 {[%emt 0:03:48]} 17. Bc4 {[%emt 0:02:34]} g6 {[%emt 0:08:57]} 18. Bxd5 {[%emt 0:01:50]} Nxd5 {[%emt 0:01:20]} 19. Nc4 {[%emt 0:03:12]} f6 {[%emt 0:13:08]} 20. g3 Nb8 21. Bd4 {[%emt 0:08:53]} Bxd4 {[%emt 0:07:50]} 22. Nxd4 {[%emt 0:00:57]} Nc6 {[%emt 0:02:45]} 23. Nb5 {[%emt 0:03:04]} f5 {[%emt 0:00:57]} 24. Rxd5 {[%emt 0:03:41]} exd5 {[%emt 0:02:24]} 25. Nxb6 {[%emt 0:00:13]} Rb8 {[%emt 0:00:11]} 26. Rxc6 {[%emt 0:00:04]} Rb7 {[%emt 0:01:01]} 27. Kf1 {[%emt 0:02:27]} Rdb8 {[%emt 0:02:30]} 28. Nxd5+ {[%emt 0:00:10]} Kd7 {[%emt 0:00:07]} 29. Rd6+ {[%emt 0:01:45]} Ke8 {[%emt 0:00:26]} 30. Ke2 {[%emt 0:01:51]} Kf7 {[%emt 0:03:32]} 31. Ra6 {[%emt 0:04:29]} Rd7 {[%emt 0:00:17]} 32. Nf4 {[%emt 0:03:15]} g5 {[%emt 0:00:41]} 33. Nd3 {[%emt 0:00:24]} Kg7 {[%emt 0:01:18]} 34. Rxa5 {[%emt 0:01:01]} Rc8 {[%emt 0:00:15]} 35. Nd4 {[%emt 0:01:02]} Kh8 {[%emt 0:01:52]} 36. Rc5 {[%emt 0:00:35]} Re8 {[%emt 0:00:56]} 37. Nxf5 {[%emt 0:01:34]} Red8 {[%emt 0:00:08]} 38. Nd4 {[%emt 0:00:04]} 1-0